bitfinex/quotes_SOLUSD_20220207
["timestamp","ask_amount","ask_price","bid_price","bid_amount"]
[1644200315123,42.78106015,114.13,114.03,61.72372082]
[1644200316531,1.24899068,114.12,114.03,61.72372082]
[1644200316928,42.78106015,114.13,114.03,61.72372082]
[1644200317128,1.24899068,114.12,114.03,61.72372082]
[1644200317832,42.78106015,114.13,114.03,61.72372082]
[1644200318028,42.78106015,114.13,114.03,57.34072082]
[1644200319730,1.24899068,114.12,114.03,57.34072082]
[1644200320132,1.49899068,114.12,114.03,57.34072082]
[1644200320439,1.24899068,114.12,114.03,57.34072082]
[1644200320631,1.49899068,114.12,114.03,57.34072082]
[1644200320833,42.78106015,114.13,114.03,57.34072082]
[1644200329948,55.93196015,114.13,114.03,57.34072082]
[1644200330966,56.18196015,114.13,114.03,57.34072082]
[1644200333065,24.77219068,114.12,114.03,57.34072082]
[1644200333270,25.02219068,114.12,114.03,57.34072082]
[1644200333466,23.5232,114.12,114.03,57.34072082]
[1644200336068,36.6752,114.12,114.03,57.09072082]
[1644200336270,36.6752,114.12,114.03,42.3597]
[1644200336467,37.92419068,114.12,114.03,42.3597]
[1644200336667,1.24899068,114.11,114.03,42.3597]
[1644200337970,14.40239068,114.11,114.03,42.3597]
[1644200338268,14.65239068,114.11,114.03,42.3597]
[1644200338470,14.65239068,114.11,114.03,42.6097]
[1644200339073,14.65239068,114.11,114.03,23.4563]
[1644200339074,34.87694558,114.09,114.03,23.4563]
[1644200341482,48.03234558,114.09,114.03,23.4563]
[1644200341677,48.03234558,114.09,114.03,0.25]
[1644200342176,48.03234558,114.09,114.01,30.1078]
[1644200342379,48.03234558,114.09,114.01,30.3578]
[1644200342582,49.28133626,114.09,114.01,30.3578]
[1644200342778,48.03234558,114.09,114.01,30.3578]
[1644200343579,48.03234558,114.09,114.01,24.3578]
[1644200343779,49.28133626,114.09,114.01,0.25]
[1644200343983,49.28133626,114.09,114.0,37.8439]
[1644200344183,49.53133626,114.09,114.0,30.6879]
[1644200344380,49.53133626,114.09,114.0,24.6879]
[1644200344581,1.24899068,114.08,113.99,69.42190414]
[1644200344780,26.14089068,114.08,113.99,75.42190414]
[1644200344986,47.54279572,114.05,113.99,75.42190414]
[1644200345185,47.54279572,114.05,113.99,6.0]
[1644200345381,47.54279572,114.05,113.98,6.0]
[1644200345581,47.54279572,114.05,113.96,20.37720416]
[1644200345782,47.54279572,114.05,113.97,24.8212]
[1644200346182,47.54279572,114.05,113.97,31.0712]
[1644200346381,60.70349572,114.05,113.97,81.01671894]
[1644200347681,60.70349572,114.05,113.97,6.25]
[1644200347884,60.70349572,114.05,113.97,0.25]
[1644200348382,60.70349572,114.05,113.95,21.25334947]
[1644200348588,60.70349572,114.05,113.96,46.91011072]
[1644200348784,24.3538,114.04,113.96,46.91011072]
[1644200348983,13.1634,114.03,113.96,46.91011072]
[1644200349385,13.4134,114.03,113.96,46.91011072]
[1644200349885,13.4134,114.03,113.96,47.16011072]
[1644200350085,37.5149,114.04,113.96,66.32171072]
[1644200351085,37.5149,114.04,113.96,19.4116]
[1644200351792,37.5149,114.04,113.96,13.4116]
[1644200351987,37.5149,114.04,113.96,57.75479576]
[1644200352885,37.7649,114.04,113.96,57.75479576]
[1644200353287,37.7649,114.04,113.95,2.09144947]
[1644200353485,37.7649,114.04,113.95,6.0]
[1644200353685,52.59173917,114.04,113.94,22.6174]
[1644200353887,4.386,114.03,113.94,22.6174]
[1644200354087,13.167,114.01,113.94,22.6174]
[1644200354291,35.36890623,114.0,113.94,22.6174]
[1644200354689,35.36890623,114.0,113.94,22.8674]
[1644200355693,13.1667,114.0,113.94,22.8674]
[1644200355889,24.0006,114.02,113.94,22.8674]
[1644200356489,24.0006,114.02,113.94,28.8674]
[1644200356689,61.882162,114.02,113.94,30.95884947]
[1644200356891,61.882162,114.02,113.94,44.12284947]
[1644200357091,61.882162,114.02,113.94,56.76284947]
[1644200357689,24.0006,114.02,113.94,56.76284947]
[1644200358489,13.16,114.05,113.94,61.14884947]
[1644200358691,40.84161817,114.03,113.94,61.14884947]
[1644200359894,23.5766,114.04,113.94,61.14884947]
[1644200360094,24.2716,114.07,113.94,61.14884947]
[1644200360296,23.4251,114.06,113.94,69.80484947]
[1644200360693,23.4251,114.06,113.94,92.776623]
[1644200360895,48.17215583,114.05,113.94,92.776623]
[1644200361094,104.28439068,114.1,113.94,92.776623]
[1644200361292,47.9971,114.1,113.94,158.2253137]
[1644200361495,47.9971,114.1,113.99,13.1534]
[1644200361693,47.9971,114.1,114.0,24.6952]
[1644200362098,23.7825,114.1,114.0,30.9452]
[1644200362297,44.12610661,114.09,114.01,34.92269943]
[1644200362695,44.12610661,114.09,114.02,13.1537]
[1644200362897,44.12610661,114.09,114.02,35.9973]
[1644200363097,44.12610661,114.09,114.02,42.2473]
[1644200367200,44.37610661,114.09,114.02,42.2473]
[1644200373326,23.7825,114.1,114.02,42.2473]
[1644200373527,1.24899068,114.12,114.02,44.3388378]
[1644200373727,1.24899068,114.13,114.02,56.9788378]
[1644200373926,1.24899068,114.14,114.02,56.9788378]
[1644200374225,39.34025951,114.13,114.02,65.06507321]
[1644200374828,39.34025951,114.13,114.02,56.9788378]
[1644200375028,24.4156,114.12,114.02,56.9788378]
[1644200376327,24.6656,114.12,114.02,54.6373]
[1644200376527,26.85243917,114.12,114.02,41.9973]
[1644200376728,28.10142985,114.12,114.02,41.9973]
[1644200377228,45.63662985,114.12,114.02,28.8436]
[1644200377629,45.63662985,114.12,114.02,29.0936]
[1644200377829,45.63662985,114.12,114.02,28.8436]
[1644200378029,45.38662985,114.12,114.02,28.8436]
[1644200378433,41.00362985,114.12,114.02,41.9981]
[1644200379332,41.00362985,114.12,114.02,42.2481]
[1644200380233,41.00362985,114.12,114.02,6.0]
[1644200380433,13.1584,114.09,114.02,6.0]
[1644200380733,41.96193398,114.08,114.02,6.0]
[1644200381334,41.96193398,114.08,114.01,40.92269943]
[1644200381533,41.96193398,114.08,114.01,41.17269943]
[1644200381735,42.21193398,114.08,114.01,41.17269943]
[1644200381936,13.1587,114.07,114.01,6.25]
[1644200382135,22.0537,114.07,114.01,0.25]
[1644200382335,45.9644,114.07,114.01,0.25]
[1644200382637,45.9644,114.07,113.99,13.408]
[1644200382935,45.9644,114.07,114.0,44.15396965]
[1644200383336,45.9644,114.07,114.0,44.40396965]
[1644200383536,45.9644,114.07,114.0,50.40396965]
[1644200384135,45.9644,114.07,114.0,50.15396965]
[1644200385336,46.2144,114.07,114.0,50.15396965]
[1644200385536,46.2144,114.07,114.0,50.40396965]
[1644200386936,46.2144,114.07,114.0,50.15396965]
[1644200388337,46.2144,114.07,114.0,6.25]
[1644200388539,46.2144,114.07,114.0,0.25]
[1644200388738,47.46339068,114.07,113.98,29.7715]
[1644200389344,47.46339068,114.07,113.99,36.29596111]
[1644200389745,47.46339068,114.07,113.99,36.54596111]
[1644200390948,46.2144,114.07,113.99,36.54596111]
[1644200391847,46.2144,114.07,113.99,38.64779677]
[1644200392047,46.2144,114.07,113.99,51.80579677]
[1644200393051,46.2144,114.07,113.99,49.70396111]
[1644200393249,37.3194,114.07,113.99,49.70396111]
[1644200396951,37.3194,114.07,113.99,36.54596111]
[1644200399356,38.56839068,114.07,113.99,36.54596111]
[1644200400560,38.56839068,114.07,114.0,22.7653]
[1644200400758,37.3194,114.07,114.0,22.7653]
[1644200402460,37.0694,114.07,114.0,22.7653]
[1644200402660,1.24899068,114.08,114.0,23.0153]
[1644200402860,1.24899068,114.09,114.0,31.11732514]
[1644200403362,26.71462909,114.12,114.0,68.25182514]
[1644200403363,1.24899068,114.11,114.0,68.25182514]
[1644200403562,1.24899068,114.11,114.04,13.1512]
[1644200403762,35.43630979,114.1,114.05,36.31343542]
[1644200404164,25.46729068,114.12,114.05,42.56343542]
[1644200404165,1.24899068,114.12,114.05,42.56343542]
[1644200404363,1.24899068,114.13,114.05,44.66546056]
[1644200404563,1.24899068,114.13,114.05,57.81626056]
[1644200404963,1.24899068,114.14,114.05,57.81626056]
[1644200405164,48.19028981,114.12,114.06,23.1865]
[1644200405383,48.19028981,114.12,114.06,23.4365]
[1644200405585,48.19028981,114.12,114.06,29.4365]
[1644200406984,48.19028981,114.12,114.07,13.1473]
[1644200407187,1.24899068,114.14,114.07,19.1473]
[1644200407385,1.24899068,114.15,114.07,19.3973]
[1644200407585,1.24899068,114.15,114.08,25.72182514]
[1644200407885,1.24899068,114.18,114.09,2.10202514]
[1644200408089,1.24899068,114.19,114.09,8.10202514]
[1644200408285,41.8757826,114.18,114.1,62.46981059]
[1644200408586,41.8757826,114.18,114.1,70.57183573]
[1644200408785,41.8757826,114.18,114.11,2.10202514]
[1644200409085,41.8757826,114.18,114.12,13.1429]
[1644200409285,41.8757826,114.18,114.12,13.3929]
[1644200409485,41.8757826,114.18,114.12,19.3929]
[1644200410287,41.8757826,114.18,114.12,6.0]
[1644200410486,41.8757826,114.18,114.1,81.61431059]
[1644200410788,43.12477328,114.18,114.1,75.61431059]
[1644200410987,41.8757826,114.18,114.1,75.61431059]
[1644200411187,41.8757826,114.18,114.1,23.1224]
[1644200411385,56.27017328,114.18,114.1,23.1224]
[1644200411785,56.27017328,114.18,114.1,23.3724]
[1644200411985,56.27017328,114.18,114.1,0.25]
[1644200412487,56.27017328,114.18,114.09,13.3967]
[1644200412686,56.27017328,114.18,114.09,0.25]
[1644200412885,56.27017328,114.18,114.08,49.65995637]
[1644200413086,56.27017328,114.18,114.08,6.25]
[1644200413288,71.09701245,114.18,114.08,6.25]
[1644200413492,1.24899068,114.17,114.08,0.25]
[1644200413688,13.1505,114.15,114.08,0.25]
[1644200413889,13.1505,114.15,114.07,0.25]
[1644200414093,37.57280362,114.14,114.06,40.68283525]
[1644200414289,37.57280362,114.14,114.06,64.01853525]
[1644200414488,37.57280362,114.14,114.06,69.76853525]
[1644200414788,37.57280362,114.14,114.06,82.91843525]
[1644200415190,37.57280362,114.14,114.06,85.02046039]
[1644200417090,37.57280362,114.14,114.06,85.27046039]
[1644200417691,37.82280362,114.14,114.06,85.27046039]
[1644200418091,0.25,114.14,114.06,85.27046039]
[1644200418292,46.573,114.17,114.06,85.27046039]
[1644200418494,0.25,114.15,114.06,85.27046039]
[1644200418692,59.9706,114.17,114.06,89.65146039]
[1644200418892,59.9706,114.17,114.06,85.27046039]
[1644200419295,34.58460151,114.16,114.06,85.27046039]
[1644200419495,47.73230151,114.16,114.06,85.27046039]
[1644200419894,47.73230151,114.16,114.06,83.16843525]
[1644200424098,47.98230151,114.16,114.06,83.16843525]
[1644200424699,47.98230151,114.16,114.07,12.64]
[1644200424899,47.73230151,114.16,114.08,13.1476]
[1644200425099,59.7195,114.17,114.08,19.1476]
[1644200425399,1.24899068,114.19,114.08,19.3976]
[1644200425598,1.24899068,114.19,114.09,24.9598]
[1644200425799,1.24899068,114.19,114.09,25.2098]
[1644200425999,1.24899068,114.19,114.09,31.2098]
[1644200426301,43.76865142,114.18,114.1,37.92208569]
[1644200426698,43.76865142,114.18,114.1,44.17208569]
[1644200427098,43.76865142,114.18,114.11,13.144]
[1644200427298,43.76865142,114.18,114.11,13.394]
[1644200427499,45.0176421,114.18,114.11,13.394]
[1644200428098,45.0176421,114.18,114.1,6.0]
[1644200428099,58.1630421,114.18,114.1,6.0]
[1644200428298,58.1630421,114.18,114.1,6.25]
[1644200428502,58.1630421,114.18,114.1,0.25]
[1644200428700,58.4130421,114.18,114.1,0.25]
[1644200429302,58.4130421,114.18,114.09,69.08495135]
[1644200429600,58.4130421,114.18,114.09,63.08495135]
[1644200429800,13.148,114.16,114.09,63.08495135]
[1644200430001,13.148,114.16,114.09,38.12515135]
[1644200430201,14.39699068,114.16,114.09,38.12515135]
[1644200430604,13.148,114.16,114.09,38.12515135]
[1644200431009,14.39549068,114.17,114.09,51.27165135]
[1644200431207,14.39549068,114.17,114.09,74.04405135]
[1644200433407,43.76865142,114.18,114.09,36.1689]
[1644200433408,1.24899068,114.16,114.09,36.1689]
[1644200433607,14.39669068,114.16,114.09,23.0224]
[1644200435908,14.64669068,114.16,114.09,23.0224]
[1644200437113,14.64669068,114.16,114.09,22.7724]
[1644200437313,1.24899068,114.15,114.09,22.7724]
[1644200437512,13.1507,114.14,114.09,22.7724]
[1644200437712,13.1507,114.14,114.08,23.0168]
[1644200438113,37.41462579,114.13,114.08,23.0168]
[1644200438313,37.41462579,114.13,114.08,23.2668]
[1644200438713,37.41462579,114.13,114.08,23.0168]
[1644200439537,50.56572579,114.13,114.08,23.0168]
[1644200439738,50.56572579,114.13,114.07,23.8602]
[1644200440139,37.41462579,114.13,114.07,23.8602]
[1644200440340,37.41462579,114.13,114.07,24.1102]
[1644200440741,37.41462579,114.13,114.07,61.39734612]
[1644200441744,37.41462579,114.13,114.07,67.39734612]
[1644200442043,37.41462579,114.13,114.07,74.54614612]
[1644200442343,37.41462579,114.13,114.07,80.54614612]
[1644200443844,1.24899068,114.16,114.07,82.64817126]
[1644200444044,1.24899068,114.17,114.07,83.86467542]
[1644200444346,1.24899068,114.18,114.08,1.21650416]
[1644200444544,25.53299068,114.19,114.11,13.143]
[1644200444744,47.31853911,114.18,114.12,43.14626248]
[1644200445145,47.31853911,114.18,114.12,49.39626248]
[1644200445943,1.24899068,114.19,114.12,62.53926248]
[1644200446745,48.49396826,114.23,114.13,22.73]
[1644200446746,1.24899068,114.2,114.13,22.73]
[1644200446947,40.47857163,114.21,114.13,22.73]
[1644200447145,1.24899068,114.22,114.15,13.09917402]
[1644200447345,1.24899068,114.23,114.15,13.34917402]
[1644200447545,1.24899068,114.23,114.15,0.25]
[1644200447747,1.24899068,114.22,114.15,0.25]
[1644200448146,38.52777567,114.21,114.15,0.25]
[1644200448447,51.66867567,114.21,114.13,45.8737]
[1644200448645,53.16766635,114.21,114.13,45.8737]
[1644200449046,55.35450552,114.21,114.13,45.8737]
[1644200449246,59.73250552,114.21,114.13,45.8737]
[1644200449448,1.24899068,114.2,114.13,45.8737]
[1644200449647,13.144,114.19,114.13,45.8737]
[1644200450648,13.144,114.19,114.13,51.8737]
[1644200451453,13.1419,114.2,114.13,52.1237]
[1644200452753,13.1419,114.2,114.13,51.8737]
[1644200453353,13.1419,114.2,114.13,46.1237]
[1644200453553,13.1419,114.2,114.13,52.1237]
[1644200455454,13.1419,114.2,114.13,51.8737]
[1644200455852,13.3919,114.2,114.13,52.1237]
[1644200456054,13.3919,114.2,114.13,0.25]
[1644200456255,13.3919,114.2,114.11,24.2851]
[1644200456452,13.3919,114.2,114.11,30.2851]
[1644200456853,14.64089068,114.2,114.11,30.2851]
[1644200457052,13.3919,114.2,114.11,30.2851]
[1644200457255,13.3919,114.2,114.11,68.96735921]
[1644200457655,13.1419,114.2,114.11,82.11145921]
[1644200457853,38.52777567,114.21,114.11,94.75145921]
[1644200459454,38.52777567,114.21,114.14,13.1375]
[1644200459656,38.52777567,114.21,114.15,35.99099742]
[1644200460057,38.52777567,114.21,114.15,36.24099742]
[1644200460458,13.14,114.23,114.15,36.24099742]
[1644200460659,13.14,114.23,114.15,42.24099742]
[1644200461058,13.14,114.23,114.15,55.38059742]
[1644200461464,40.9554872,114.22,114.15,55.38059742]
[1644200465166,40.9554872,114.22,114.15,19.3896]
[1644200465390,40.9554872,114.22,114.15,0.25]
[1644200465667,40.9554872,114.22,114.14,36.7485]
[1644200466167,40.9554872,114.22,114.14,83.46020695]
[1644200466568,40.9554872,114.22,114.14,89.46020695]
[1644200466769,40.9554872,114.22,114.14,89.71020695]
[1644200469675,13.1374,114.24,114.14,89.71020695]
[1644200469873,1.24899068,114.26,114.15,12.64]
[1644200470075,25.06109068,114.28,114.16,27.9986]
[1644200470274,1.24899068,114.29,114.18,13.1333]
[1644200470482,1.7914438,114.31,114.19,12.64]
[1644200470676,38.79156856,114.31,114.2,61.52879138]
[1644200470873,37.54257788,114.31,114.21,12.64]
[1644200471077,37.54257788,114.31,114.21,18.64]
[1644200471275,0.54245312,114.31,114.21,18.89]
[1644200471475,0.54245312,114.31,114.22,24.3016]
[1644200471679,0.54245312,114.31,114.22,42.9416]
[1644200471875,0.54245312,114.31,114.22,43.1916]
[1644200472075,0.54245312,114.31,114.22,56.3215]
[1644200472275,43.51631982,114.3,114.22,56.3215]
[1644200472974,43.76631982,114.3,114.22,56.0715]
[1644200473377,43.76631982,114.3,114.22,50.0715]
[1644200473574,43.76631982,114.3,114.22,6.0]
[1644200473575,45.95315899,114.3,114.22,6.0]
[1644200473976,45.95315899,114.3,114.19,30.5708]
[1644200474177,4.376,114.29,114.19,24.5708]
[1644200474377,70.34005899,114.3,114.2,42.36071484]
[1644200474578,6.56283917,114.28,114.2,42.36071484]
[1644200474777,2.18683917,114.28,114.2,42.36071484]
[1644200475676,2.18683917,114.28,114.19,24.5708]
[1644200476078,13.1356,114.27,114.19,24.5708]
[1644200476480,37.0617638,114.26,114.2,40.78526866]
[1644200477779,37.0617638,114.26,114.2,41.03526866]
[1644200478384,37.0617638,114.26,114.2,0.25]
[1644200478584,37.0617638,114.26,114.19,30.8208]
[1644200479785,37.0617638,114.26,114.19,53.8744]
[1644200480186,37.3117638,114.26,114.19,53.8744]
[1644200481909,50.4477638,114.26,114.19,47.6244]
[1644200482113,50.4477638,114.26,114.15,12.64]
[1644200482308,24.5387,114.25,114.16,22.9615]
[1644200482908,37.1787,114.25,114.16,22.9615]
[1644200483112,39.36553917,114.25,114.14,38.15724378]
[1644200483310,45.69691375,114.22,114.14,38.15724378]
[1644200484715,45.69691375,114.22,114.14,48.53524378]
[1644200485316,45.69691375,114.22,114.15,22.9633]
[1644200485719,45.69691375,114.22,114.15,29.2133]
[1644200486118,45.69691375,114.22,114.15,23.2133]
[1644200486722,45.69691375,114.22,114.15,28.9633]
[1644200487431,45.69691375,114.22,114.15,29.2133]
[1644200490425,13.1384,114.24,114.15,29.2133]
[1644200490624,24.5387,114.25,114.15,29.2133]
[1644200490925,13.1367,114.26,114.15,29.2133]
[1644200491127,23.92599068,114.27,114.16,12.64]
[1644200491423,36.34330234,114.26,114.18,39.68612059]
[1644200491624,36.34330234,114.26,114.18,45.68612059]
[1644200491826,36.34330234,114.26,114.18,45.93612059]
[1644200495227,49.47940234,114.26,114.18,6.0]
[1644200495626,49.47940234,114.26,114.17,41.9054]
[1644200495828,49.47940234,114.26,114.17,42.1554]
[1644200496227,49.72940234,114.26,114.17,85.53329249]
[1644200498227,49.72940234,114.26,114.17,31.62436071]
[1644200499152,49.72940234,114.26,114.17,6.0]
[1644200499153,50.97839302,114.26,114.17,6.0]
[1644200499327,4.377,114.25,114.17,6.0]
[1644200499527,4.377,114.25,114.15,8.10896071]
[1644200499528,13.1395,114.23,114.15,8.10896071]
[1644200499731,47.80342267,114.22,114.15,2.10896071]
[1644200500028,47.80342267,114.22,114.15,8.10896071]
[1644200500229,47.80342267,114.22,114.15,2.10896071]
[1644200500428,47.80342267,114.22,114.15,8.10896071]
[1644200502132,47.80342267,114.22,114.15,33.13146071]
[1644200503534,48.05342267,114.22,114.15,33.13146071]
[1644200504135,48.05342267,114.22,114.15,32.88146071]
[1644200504435,61.19392267,114.22,114.15,24.7725]
[1644200504635,60.94392267,114.22,114.15,24.7725]
[1644200504835,60.94392267,114.22,114.15,25.0225]
[1644200505237,60.94392267,114.22,114.15,31.0225]
[1644200507058,48.05342267,114.22,114.15,31.0225]
[1644200507256,48.05342267,114.22,114.15,33.13146071]
[1644200507257,47.80342267,114.22,114.15,33.13146071]
[1644200508059,47.80342267,114.22,114.15,45.77146071]
[1644200508962,47.80342267,114.22,114.15,58.90806071]
[1644200510466,47.80342267,114.22,114.13,14.35540416]
[1644200510665,63.0,114.21,114.13,1.21650416]
[1644200510865,63.0,114.21,114.11,26.13396071]
[1644200510866,4.378,114.2,114.11,1.21650416]
[1644200511064,4.378,114.2,114.07,2.48259882]
[1644200511065,4.378,114.2,114.1,1.21650416]
[1644200511265,17.018,114.2,114.1,1.21650416]
[1644200511467,11.08661851,114.19,114.09,1.21650416]
[1644200511671,13.147,114.16,114.09,1.21650416]
[1644200511866,20.45984334,114.15,114.09,1.21650416]
[1644200512066,20.45984334,114.15,114.08,1.21650416]
[1644200512565,20.45984334,114.15,114.08,7.21650416]
[1644200513167,33.60804334,114.15,114.08,1.21650416]
[1644200513367,33.60804334,114.15,114.07,1.21650416]
[1644200513569,33.60804334,114.15,114.07,6.0]
[1644200513969,33.60804334,114.15,114.06,1.21650416]
[1644200514170,33.60804334,114.15,114.06,7.21650416]
[1644200514468,33.60804334,114.15,114.06,6.0]
[1644200514669,33.60804334,114.15,114.06,0.25]
[1644200514967,33.60804334,114.15,114.05,1.21650416]
[1644200515369,13.1523,114.12,114.04,1.21650416]
[1644200515567,20.45984334,114.11,114.04,1.21650416]
[1644200516171,20.45984334,114.11,114.03,20.36670416]
[1644200516471,20.45984334,114.11,114.03,20.61670416]
[1644200516870,33.61244334,114.11,114.03,7.21650416]
[1644200517470,33.61244334,114.11,114.03,1.21650416]
[1644200517669,33.61244334,114.11,114.02,38.48905124]
[1644200518069,13.4026,114.11,114.02,38.48905124]
[1644200518271,13.1513,114.13,114.02,64.61690787]
[1644200518671,13.1513,114.13,114.02,70.61690787]
[1644200518873,13.1513,114.13,114.02,70.86690787]
[1644200519074,45.73608515,114.12,114.02,70.86690787]
[1644200519273,58.88818515,114.12,114.02,84.01920787]
[1644200520573,58.88818515,114.12,114.02,70.53135124]
[1644200521674,59.13818515,114.12,114.02,70.53135124]
[1644200525376,58.44593824,114.12,114.02,70.53135124]
[1644200533115,45.29383824,114.12,114.02,70.53135124]
[1644200533514,45.29383824,114.12,114.03,1.21650416]
[1644200533715,45.29383824,114.12,114.05,13.1492]
[1644200534114,45.29383824,114.12,114.05,19.3992]
[1644200534516,45.29383824,114.12,114.06,46.01006211]
[1644200534717,47.7556,114.14,114.06,65.40846211]
[1644200534914,17.022,114.19,114.06,65.40846211]
[1644200535116,22.6475,114.17,114.07,22.8059]
[1644200535315,22.6475,114.17,114.07,23.0559]
[1644200535516,22.6475,114.17,114.07,29.0559]
[1644200535715,22.6475,114.17,114.08,43.45316848]
[1644200535716,43.93814743,114.16,114.08,43.45316848]
[1644200536116,43.93814743,114.16,114.08,49.70316848]
[1644200537017,43.93814743,114.16,114.08,62.84916848]
[1644200539317,44.18814743,114.16,114.08,62.84916848]
[1644200540021,44.18814743,114.16,114.08,64.06567264]
[1644200540417,0.25,114.16,114.08,64.06567264]
[1644200540818,22.8975,114.17,114.08,64.06567264]
[1644200541219,22.8975,114.17,114.08,76.70567264]
[1644200542021,22.8975,114.17,114.1,35.58846726]
[1644200542223,10.72966769,114.16,114.1,54.98166726]
[1644200544421,22.6475,114.17,114.1,54.98166726]
[1644200544625,13.1429,114.2,114.1,54.98166726]
[1644200544924,47.5511,114.21,114.11,24.4891]
[1644200545125,1.24899068,114.23,114.13,13.1402]
[1644200545322,1.24899068,114.24,114.14,24.4891]
[1644200545522,1.24899068,114.24,114.15,40.10138562]
[1644200545523,42.25632165,114.23,114.15,40.10138562]
[1644200545821,42.25632165,114.23,114.15,40.35138562]
[1644200546024,42.25632165,114.23,114.15,46.35138562]
[1644200546224,0.25,114.23,114.15,46.35138562]
[1644200546425,0.25,114.23,114.15,59.48878562]
[1644200546629,1.24899068,114.25,114.15,59.48878562]
[1644200546824,25.90929068,114.26,114.15,59.48878562]
[1644200547224,39.68304187,114.25,114.15,59.48878562]
[1644200547925,52.81904187,114.25,114.15,59.48878562]
[1644200550327,53.06904187,114.25,114.15,59.48878562]
[1644200551328,53.06904187,114.25,114.15,59.23878562]
[1644200551727,57.44704187,114.25,114.15,6.0]
[1644200551928,2.18683917,114.24,114.15,6.0]
[1644200552128,13.143,114.2,114.13,6.0]
[1644200552329,13.143,114.2,114.11,12.64]
[1644200552528,13.143,114.2,114.11,18.64]
[1644200552730,18.5147524,114.19,114.12,43.71704398]
[1644200553227,18.5147524,114.19,114.12,49.71704398]
[1644200553427,18.0147524,114.19,114.12,49.71704398]
[1644200554030,31.1577524,114.19,114.12,49.71704398]
[1644200554227,31.1577524,114.19,114.12,49.96704398]
[1644200554728,23.8919,114.21,114.12,63.10854398]
[1644200555528,37.0326,114.21,114.12,63.10854398]
[1644200555730,48.20648857,114.2,114.12,63.10854398]
[1644200557033,23.8919,114.21,114.12,63.10854398]
[1644200557531,23.8919,114.21,114.12,87.92384398]
[1644200559133,23.8919,114.21,114.12,100.56384398]
[1644200559934,13.1384,114.23,114.12,100.56384398]
[1644200560134,45.7626,114.24,114.12,100.56384398]
[1644200560541,85.67024533,114.24,114.12,100.56384398]
[1644200561738,85.67024533,114.24,114.12,101.78034814]
[1644200565041,98.80754533,114.24,114.12,101.78034814]
[1644200565242,99.05754533,114.24,114.12,101.78034814]
[1644200565842,99.05754533,114.24,114.14,40.53895436]
[1644200566042,99.05754533,114.24,114.17,45.54894521]
[1644200566243,99.05754533,114.24,114.17,45.79894521]
[1644200566444,99.05754533,114.24,114.17,51.79894521]
[1644200566665,99.05754533,114.24,114.17,45.79894521]
[1644200566870,59.1499,114.24,114.17,45.54894521]
[1644200567067,59.1499,114.24,114.17,64.93474521]
[1644200567068,45.7626,114.24,114.17,64.93474521]
[1644200567866,45.7626,114.24,114.17,77.57474521]
[1644200568066,1.24899068,114.28,114.17,77.57474521]
[1644200568269,24.49309068,114.28,114.17,77.57474521]
[1644200568466,23.2441,114.28,114.17,77.57474521]
[1644200568867,23.2441,114.28,114.18,23.0234]
[1644200568868,23.4941,114.28,114.18,23.0234]
[1644200569068,23.4941,114.28,114.21,13.1303]
[1644200569468,62.59912633,114.28,114.22,43.43389111]
[1644200569669,23.4941,114.28,114.22,43.43389111]
[1644200571774,37.94339702,114.28,114.21,13.1303]
[1644200571974,51.07589702,114.28,114.21,6.25]
[1644200572173,51.07589702,114.28,114.21,0.25]
[1644200572977,51.07589702,114.28,114.19,56.91034439]
[1644200573178,53.26273619,114.28,114.19,43.77774439]
[1644200573377,54.51172687,114.28,114.19,44.02774439]
[1644200573777,1.24899068,114.27,114.19,44.02774439]
[1644200573977,56.38439725,114.26,114.19,0.25]
[1644200574179,56.38439725,114.26,114.19,6.25]
[1644200574378,56.38439725,114.26,114.19,0.25]
[1644200574579,56.38439725,114.26,114.18,29.2734]
[1644200574781,56.38439725,114.26,114.18,6.0]
[1644200575181,56.38439725,114.26,114.17,45.48939151]
[1644200575790,56.38439725,114.26,114.17,58.62519151]
[1644200576082,56.38439725,114.26,114.19,43.90034622]
[1644200576281,56.63439725,114.26,114.19,44.15034622]
[1644200576679,13.3859,114.26,114.19,44.15034622]
[1644200577080,13.3859,114.26,114.19,50.15034622]
[1644200577679,0.25,114.26,114.19,50.15034622]
[1644200578082,23.2441,114.28,114.19,50.15034622]
[1644200578280,19.55727216,114.27,114.19,50.15034622]
[1644200579081,23.2441,114.28,114.19,50.15034622]
[1644200579481,23.2441,114.28,114.19,75.92374622]